bitfinex-derivatives/quotes_BTCF0:USTF0_20240913
["timestamp","ask_amount","ask_price","bid_price","bid_amount"]
[1726263252680,0.3608,60347.0,60342.0,0.26]
[1726263252990,0.3608,60347.0,60345.0,0.082802]
[1726263253285,0.08277,60369.0,60342.0,0.26]
[1726263253286,0.3608,60360.0,60346.0,0.85792]
[1726263253495,0.3608,60360.0,60342.0,0.86]
[1726263253496,0.128,60374.0,60362.0,0.26]
[1726263253802,0.0045,60383.0,60362.0,0.26]
[1726263253803,0.443557,60379.0,60362.0,0.26]
[1726263254008,0.0039,60382.0,60357.0,0.3608]
[1726263254009,0.3608,60374.0,60357.0,0.3608]
[1726263254291,0.3608,60374.0,60352.0,0.8008]
[1726263254292,0.3608,60366.0,60352.0,0.8008]
[1726263254493,0.001,60360.0,60358.0,0.44]
[1726263254987,0.128,60382.0,60357.0,0.3608]
[1726263254988,0.3608,60363.0,60357.0,0.3608]
[1726263255187,0.3608,60363.0,60352.0,0.3608]
[1726263255188,0.3608,60363.0,60347.0,0.3608]
[1726263255383,0.3608,60371.0,60353.0,0.8008]
[1726263255693,0.001,60366.0,60358.0,0.3608]
[1726263256189,0.3608,60359.0,60352.0,0.011]
[1726263256483,0.3608,60354.0,60352.0,0.011]
[1726263256688,0.44,60353.0,60336.0,0.0039]
[1726263256900,0.443611,60339.0,60333.0,0.0018]
[1726263257075,0.443611,60339.0,60319.0,0.8008]
[1726263257076,0.3608,60334.0,60319.0,0.8008]
[1726263257281,0.3608,60328.0,60319.0,0.3608]
[1726263257790,0.3608,60328.0,60304.0,0.0039]
[1726263257791,0.3608,60320.0,60309.0,0.3608]
[1726263257984,0.3608,60314.0,60309.0,0.3608]
[1726263258485,0.3608,60314.0,60294.0,0.3608]
[1726263258486,0.3608,60313.0,60294.0,0.3608]
[1726263258889,0.08286,60304.0,60294.0,0.3608]
[1726263259479,0.3608,60308.0,60294.0,0.3608]
[1726263259680,0.3608,60314.0,60307.0,0.082854]
[1726263259983,0.001,60320.0,60312.0,0.44]
[1726263260294,0.001,60320.0,60316.0,0.082841]
[1726263260683,0.3608,60323.0,60314.0,0.3608]
[1726263260982,0.3608,60323.0,60309.0,0.3608]
[1726263261195,0.082835,60322.0,60309.0,0.3608]
[1726263261490,0.3608,60318.0,60309.0,0.3608]
[1726263261885,0.44364,60318.0,60316.0,0.004]
[1726263262398,0.49736,60317.0,60297.0,0.3608]
[1726263262584,0.9608,60318.0,60297.0,0.3608]
[1726263262585,0.3608,60306.0,60297.0,0.3608]
[1726263263293,0.082863,60301.0,60297.0,0.3608]
[1726263263682,0.082863,60301.0,60281.0,0.3608]
[1726263263683,0.3608,60301.0,60281.0,0.3608]
[1726263263885,0.3608,60294.0,60281.0,0.3608]
[1726263264588,0.1239,60305.0,60268.0,0.3608]
[1726263264589,0.08289,60282.0,60268.0,0.3608]
[1726263264783,0.3608,60283.0,60268.0,0.3608]
[1726263264990,0.3608,60283.0,60274.0,0.3608]
[1726263265586,0.082893,60280.0,60274.0,0.3608]
[1726263265898,0.3608,60277.0,60268.0,0.3608]
[1726263266097,0.082901,60274.0,60268.0,0.3608]
[1726263266598,0.082903,60273.0,60268.0,0.3608]
[1726263266793,0.082904,60271.0,60268.0,0.3608]
[1726263267189,0.082904,60271.0,60268.0,0.3618]
[1726263267805,0.3608,60277.0,60268.0,0.3618]
[1726263268104,0.443697,60277.0,60268.0,0.3618]
[1726263268393,0.001,60273.0,60268.0,0.3618]
[1726263268796,0.444537,60277.0,60268.0,0.3608]
[1726263269007,0.444697,60277.0,60268.0,0.3618]
[1726263270094,0.082898,60276.0,60268.0,0.3618]
[1726263270496,0.082898,60276.0,60268.0,0.3608]
[1726263270693,0.3608,60271.0,60268.0,0.001]
[1726263271993,0.082906,60270.0,60268.0,0.001]
[1726263273599,0.082906,60270.0,60261.0,0.3608]
[1726263273899,0.082906,60270.0,60268.0,0.001]
[1726263273900,0.001,60270.0,60268.0,0.001]
[1726263274494,0.001,60270.0,60268.0,0.083908]
[1726263274899,0.001,60270.0,60268.0,0.082908]
[1726263276505,0.001,60270.0,60269.0,0.49776]
[1726263276801,0.001,60270.0,60268.0,0.084708]
[1726263277003,0.082906,60270.0,60266.0,0.3608]
[1726263277209,0.083906,60270.0,60268.0,0.001]
[1726263277500,0.001,60270.0,60268.0,0.001]
[1726263277701,0.001,60270.0,60269.0,0.001]
[1726263278207,0.001,60270.0,60266.0,0.3618]
[1726263278705,0.082902,60273.0,60266.0,0.3608]
[1726263278907,0.3608,60277.0,60271.0,0.3608]
[1726263279203,0.3608,60289.0,60276.0,0.3608]
[1726263279405,0.3608,60289.0,60276.0,0.443697]
[1726263279406,0.082885,60285.0,60276.0,0.443697]
[1726263280502,0.082887,60284.0,60276.0,0.3608]
[1726263280699,0.3608,60289.0,60276.0,0.3608]
[1726263280899,0.004,60285.0,60276.0,0.3608]
[1726263281101,0.082886,60284.0,60276.0,0.3608]
[1726263281501,0.082886,60284.0,60276.0,0.3618]
[1726263281901,0.082886,60284.0,60276.0,0.001]
[1726263282097,0.3608,60281.0,60276.0,0.001]
[1726263283404,0.3608,60281.0,60274.0,0.082899]
[1726263283603,0.3608,60281.0,60276.0,0.001]
[1726263284601,0.3608,60281.0,60274.0,0.082899]
[1726263284802,0.3608,60281.0,60276.0,0.001]
[1726263286702,0.3618,60281.0,60274.0,0.083899]
[1726263287104,0.001,60281.0,60274.0,0.083899]
[1726263287804,0.11521937,60283.0,60276.0,0.001]
[1726263288010,0.11521937,60285.0,60280.0,0.082892]
[1726263288413,0.001,60281.0,60280.0,0.082892]
[1726263290010,0.11521937,60282.0,60281.0,0.08289]
[1726263290011,0.11531993,60282.0,60281.0,0.08289]
[1726263290216,0.04059237,60282.0,60281.0,0.08289]
[1726263292223,0.001,60282.0,60281.0,0.08389]
[1726263292511,0.001,60282.0,60281.0,0.001]
[1726263292712,0.14866362,60282.0,60281.0,0.001]
[1726263292919,0.001,60282.0,60281.0,0.001]
[1726263294507,0.001,60282.0,60265.0,0.3608]
[1726263294508,0.082907,60270.0,60265.0,0.3608]
[1726263294715,0.082912,60266.0,60261.0,0.082918]
[1726263295709,0.083912,60266.0,60261.0,0.083918]
[1726263295933,0.083912,60266.0,60261.0,0.001]
[1726263296114,0.083912,60266.0,60262.0,0.082916]
[1726263296813,0.082913,60265.0,60261.0,0.001]
[1726263297323,0.082913,60265.0,60259.0,0.082921]
[1726263297912,0.083913,60265.0,60259.0,0.082921]
[1726263299316,0.083913,60265.0,60260.0,0.082919]
[1726263299519,0.001,60265.0,60259.0,0.3608]
[1726263299819,0.001,60265.0,60262.0,0.082916]
[1726263300426,0.001,60265.0,60259.0,0.3608]
[1726263300823,0.083913,60265.0,60259.0,0.443721]
[1726263302224,0.083913,60265.0,60260.0,0.082918]
[1726263303024,0.082914,60264.0,60260.0,0.082918]
[1726263303732,0.082915,60263.0,60259.0,0.3608]
[1726263304618,0.082917,60262.0,60259.0,0.3608]
[1726263307121,0.083917,60262.0,60259.0,0.3608]
[1726263307722,0.083917,60262.0,60255.0,0.082926]
[1726263307723,0.082922,60259.0,60255.0,0.082926]
[1726263307928,0.082922,60258.0,60255.0,0.082926]
[1726263308725,0.08292,60260.0,60255.0,0.082926]
[1726263309527,0.001,60262.0,60252.0,0.3608]
[1726263309732,0.082929,60253.0,60252.0,0.3608]
[1726263309929,0.3608,60253.0,60246.0,0.3608]
[1726263310334,0.3608,60253.0,60242.0,0.443743]
[1726263310729,0.082939,60247.0,60242.0,0.3608]
[1726263310930,0.443729,60253.0,60242.0,0.3608]
[1726263311338,0.08294,60246.0,60242.0,0.3608]
[1726263311937,0.3618,60253.0,60242.0,0.3608]
[1726263312840,0.082942,60244.0,60242.0,0.3608]
[1726263313132,0.082943,60243.0,60242.0,0.3608]
[1726263313430,0.082943,60243.0,60227.0,0.49112337]
[1726263313431,0.44,60243.0,60228.0,0.3608]
[1726263313634,0.082951,60237.0,60232.0,0.082958]
[1726263314235,0.3608,60235.0,60228.0,0.3608]
[1726263314634,0.082959,60231.0,60228.0,0.3608]
[1726263315026,0.3608,60235.0,60222.0,0.082971]
[1726263315027,0.3608,60229.0,60222.0,0.082971]
[1726263315230,0.3608,60229.0,60218.0,0.3608]
[1726263315231,0.604,60242.0,60226.0,0.44]
[1726263315431,0.3608,60236.0,60226.0,0.44]
[1726263316037,0.3608,60236.0,60234.0,0.082955]
[1726263316232,0.3608,60236.0,60232.0,0.082957]
[1726263316941,0.3608,60236.0,60226.0,0.44]
[1726263317128,0.001,60231.0,60226.0,0.44]
[1726263317643,0.3608,60242.0,60241.0,0.082945]
[1726263317847,0.44,60263.0,60241.0,0.082945]
[1726263317848,0.3608,60263.0,60242.0,0.082944]
[1726263318137,0.3608,60268.0,60242.0,0.082944]
[1726263318138,0.3608,60268.0,60254.0,0.44]
[1726263318345,0.3608,60268.0,60258.0,0.3608]
[1726263319239,0.3608,60268.0,60266.0,0.082911]
[1726263319630,0.3608,60268.0,60258.0,0.3608]
[1726263319631,0.3608,60268.0,60261.0,0.082918]
[1726263320037,0.3608,60268.0,60262.0,0.082916]
[1726263320447,0.3618,60268.0,60262.0,0.082916]
[1726263321255,0.3618,60268.0,60261.0,0.001]
[1726263321741,0.3618,60268.0,60262.0,0.002]
[1726263322431,0.3618,60268.0,60262.0,0.084916]
[1726263322831,0.3618,60268.0,60262.0,0.002]
[1726263323037,0.3618,60268.0,60263.0,0.082915]
[1726263323346,0.3618,60268.0,60262.0,0.002]
[1726263323736,0.3618,60268.0,60259.0,0.082921]
[1726263323737,0.3618,60268.0,60261.0,0.001]
[1726263324139,0.082916,60263.0,60252.0,0.08293]
[1726263324341,0.082917,60262.0,60252.0,0.08293]
[1726263324541,0.082917,60262.0,60251.0,0.3608]
[1726263324542,0.3608,60267.0,60251.0,0.3608]
[1726263324846,0.3608,60260.0,60251.0,0.3608]
[1726263325350,0.082925,60257.0,60251.0,0.3608]
[1726263325740,0.082925,60257.0,60251.0,0.3598]
[1726263325936,0.3608,60260.0,60252.0,0.001]
[1726263326155,0.082927,60255.0,60252.0,0.001]
[1726263327138,0.3608,60260.0,60252.0,0.001]
[1726263327346,0.082927,60255.0,60252.0,0.001]
[1726263327551,0.3608,60260.0,60251.0,0.3598]
[1726263327552,0.082929,60253.0,60251.0,0.001]
[1726263328143,0.1153,60261.0,60244.0,0.082941]
[1726263328144,0.08293,60252.0,60244.0,0.082941]
[1726263328343,0.443732,60251.0,60244.0,0.082941]
[1726263328647,0.082935,60249.0,60234.0,0.3608]
[1726263328838,0.082935,60249.0,60240.0,0.082947]
[1726263329041,0.082937,60248.0,60240.0,0.082947]
[1726263329241,0.08294,60246.0,60244.0,0.001]
[1726263329438,0.08294,60245.0,60244.0,0.001]
[1726263329838,0.44374,60245.0,60244.0,0.001]
[1726263330646,0.44374,60245.0,60234.0,0.3608]
[1726263330848,0.44374,60245.0,60239.0,0.001]
[1726263330849,0.3608,60245.0,60239.0,0.001]
[1726263331155,0.082944,60242.0,60239.0,0.001]
[1726263331456,0.44474,60245.0,60237.0,0.082951]
[1726263331853,0.082941,60244.0,60237.0,0.082951]
[1726263332052,0.082944,60242.0,60239.0,0.001]
[1726263332254,0.082944,60242.0,60237.0,0.082951]
[1726263332552,0.082944,60242.0,60237.0,0.083951]
[1726263333351,0.082944,60242.0,60240.0,0.3608]
[1726263334246,0.083944,60242.0,60240.0,0.3608]
[1726263336853,0.00084,60257.0,60256.0,0.082925]
[1726263337053,0.3608,60268.0,60265.0,0.082911]
[1726263337257,0.3608,60268.0,60267.0,0.08291]
[1726263337449,0.1175,60276.0,60267.0,0.3608]
[1726263337646,0.1213,60279.0,60267.0,0.3608]
[1726263337955,0.3608,60281.0,60272.0,0.082903]
[1726263338152,0.3608,60281.0,60267.0,0.3608]
[1726263338360,0.3608,60281.0,60268.0,0.26]
[1726263338556,0.3608,60281.0,60274.0,0.0829]
[1726263338750,0.007,60276.0,60274.0,0.0829]
[1726263339146,0.007,60276.0,60275.0,0.49772]
[1726263339560,0.007,60276.0,60275.0,1.09772]
[1726263340146,0.3678,60281.0,60275.0,1.180618]
[1726263340357,0.3678,60281.0,60275.0,0.082898]
[1726263340760,0.3608,60281.0,60276.0,0.082897]
[1726263341369,0.3618,60281.0,60276.0,0.082897]
[1726263342061,0.3618,60281.0,60276.0,0.088897]
[1726263347275,0.001,60281.0,60276.0,0.088897]
[1726263348767,0.001,60281.0,60277.0,0.082896]
[1726263349559,0.001,60281.0,60278.0,0.082894]
[1726263349973,0.001,60281.0,60276.0,0.006]
[1726263349974,0.001,60281.0,60280.0,0.703692]
[1726263350169,0.082874,60294.0,60285.0,0.082885]
[1726263350565,0.3608,60292.0,60285.0,0.082885]
[1726263351259,0.443676,60292.0,60285.0,0.082885]
[1726263351461,0.443676,60292.0,60285.0,0.083885]
[1726263353474,0.443676,60292.0,60285.0,0.082885]
[1726263353670,0.443676,60292.0,60285.0,0.083885]
[1726263353980,0.082878,60291.0,60285.0,0.083885]
[1726263356980,0.082878,60291.0,60285.0,0.082885]
[1726263357677,0.3608,60292.0,60287.0,0.082882]
[1726263358786,0.443676,60292.0,60287.0,0.082882]
[1726263358968,0.082877,60291.0,60285.0,0.001]
[1726263359171,0.082884,60286.0,60285.0,0.001]
[1726263359371,0.165768,60286.0,60285.0,0.001]
[1726263359867,0.082884,60286.0,60274.0,0.4079]
[1726263360073,0.082884,60286.0,60267.0,0.3608]
[1726263360074,0.0829,60275.0,60267.0,0.3608]
[1726263360282,0.19813491,60274.0,60267.0,0.3608]
[1726263360578,0.11523391,60273.0,60267.0,0.3608]
[1726263360781,0.082908,60269.0,60256.0,0.26]
[1726263361187,0.082908,60269.0,60248.0,0.1203]
[1726263361188,0.082921,60259.0,60248.0,0.1203]
[1726263361372,0.082921,60259.0,60253.0,0.082929]
[1726263361569,0.04060489,60258.0,60253.0,0.082929]
[1726263361783,0.04060489,60257.0,60248.0,0.3608]
[1726263362082,0.04060699,60256.0,60248.0,0.3608]
[1726263362282,0.04060699,60255.0,60251.0,0.082932]
[1726263362476,0.13221892,60258.0,60251.0,0.082932]
[1726263362678,0.04060803,60257.0,60248.0,0.3608]
[1726263362889,0.04060803,60256.0,60255.0,0.342926]
[1726263363181,0.3608,60270.0,60255.0,0.342926]
[1726263363182,0.001,60269.0,60259.0,0.005]
[1726263363384,0.001,60269.0,60268.0,1.064508]
[1726263363679,0.50903368,60283.0,60268.0,1.664508]
[1726263363680,0.11533143,60276.0,60268.0,1.664508]
[1726263363880,0.11533143,60277.0,60276.0,0.082897]
[1726263364076,0.14823368,60287.0,60276.0,0.6]
[1726263364077,0.14823368,60285.0,60276.0,0.6]
[1726263364280,0.16463677,60287.0,60284.0,0.082886]
[1726263364872,0.16463677,60287.0,60275.0,0.6208]
[1726263365078,0.16463677,60287.0,60269.0,0.3608]
[1726263365079,0.14837396,60282.0,60270.0,0.26671576]
[1726263365280,0.14837396,60280.0,60276.0,0.082897]
[1726263365481,0.082887,60284.0,60276.0,0.082897]
[1726263365482,0.14837396,60278.0,60276.0,0.082897]
[1726263365672,0.19924829,60278.0,60276.0,0.082897]
[1726263365874,0.14837396,60278.0,60277.0,0.082896]
[1726263366183,0.05087801,60278.0,60277.0,0.082896]
[1726263366584,0.05087783,60278.0,60277.0,0.082896]
[1726263366781,0.05087783,60278.0,60276.0,0.26]
[1726263366981,0.05087783,60277.0,60276.0,0.26]
[1726263367487,0.05087783,60277.0,60276.0,0.342897]
[1726263367984,0.16563677,60278.0,60276.0,0.342897]
[1726263368191,0.001,60277.0,60276.0,0.347897]
[1726263368491,0.001,60277.0,60276.0,0.005]
[1726263369483,0.001,60277.0,60276.0,0.347897]
[1726263370786,0.082886,60284.0,60276.0,0.342897]
[1726263371088,0.082886,60284.0,60276.0,0.347897]
[1726263371089,0.001,60277.0,60276.0,0.347897]
[1726263372994,0.082886,60284.0,60276.0,0.342897]
[1726263373192,0.082886,60284.0,60276.0,0.347897]
[1726263373193,0.001,60277.0,60276.0,0.347897]
[1726263376288,0.001,60277.0,60276.0,0.265]
[1726263376494,0.001,60277.0,60276.0,0.347897]
[1726263377300,0.13233008,60284.0,60279.0,0.082892]
[1726263377491,0.17291781,60283.0,60280.0,0.3608]
[1726263377793,0.04058773,60282.0,60279.0,0.082892]
[1726263378298,0.13233008,60280.0,60279.0,0.082892]
[1726263378500,0.17291781,60280.0,60279.0,0.082892]
[1726263378711,0.04058773,60280.0,60279.0,0.082892]
[1726263378900,0.082883,60287.0,60280.0,0.082892]
[1726263378901,0.17291924,60281.0,60280.0,0.082892]
[1726263380103,0.17291924,60281.0,60280.0,0.272892]
[1726263380307,0.17391924,60281.0,60280.0,0.277892]
[1726263381492,0.17391924,60281.0,60280.0,0.775572]
[1726263382093,0.001,60281.0,60280.0,0.277892]
[1726263390114,0.04158885,60281.0,60280.0,0.277892]
[1726263390887,0.04158947,60281.0,60280.0,0.277892]
[1726263391087,0.04158947,60281.0,60280.0,0.005]
[1726263391892,0.04158984,60281.0,60280.0,0.005]
[1726263392693,0.17391992,60281.0,60280.0,0.005]
[1726263392891,0.04158984,60281.0,60280.0,0.005]
[1726263394009,0.001,60281.0,60280.0,0.005]
[1726263394202,0.09246643,60281.0,60280.0,0.005]
[1726263395294,0.19043892,60281.0,60280.0,0.005]
[1726263395499,0.04158984,60281.0,60280.0,0.005]
[1726263397206,0.001,60281.0,60280.0,0.005]
[1726263403928,0.002,60281.0,60280.0,0.019]
[1726263404332,0.0021,60281.0,60280.0,0.019]
[1726263405123,0.0021,60281.0,60280.0,0.101892]
[1726263405725,0.04269197,60281.0,60280.0,0.101892]
[1726263405926,0.0426929,60281.0,60280.0,0.101892]
[1726263408835,0.09357492,60281.0,60280.0,0.101892]
[1726263409523,0.0426929,60281.0,60280.0,0.101892]
[1726263409729,0.09357373,60281.0,60280.0,0.101892]
[1726263410030,0.09257373,60281.0,60280.0,0.100892]
[1726263410333,0.0416929,60281.0,60280.0,0.100892]
[1726263410529,0.04169191,60281.0,60280.0,0.099892]
[1726263411238,0.04069191,60281.0,60280.0,0.085892]
[1726263411532,0.04069191,60281.0,60280.0,0.099892]
[1726263411533,0.04169191,60281.0,60280.0,0.099892]
[1726263412137,0.0011,60281.0,60280.0,0.099892]
[1726263412629,0.0021,60281.0,60280.0,0.101892]
[1726263412830,0.0011,60281.0,60280.0,0.087892]
[1726263413034,0.0021,60281.0,60280.0,0.101892]
[1726263413236,0.0011,60281.0,60280.0,0.099892]
[1726263413642,0.0001,60281.0,60280.0,0.529584]
[1726263413831,0.11600363,60293.0,60292.0,0.082875]
[1726263414128,0.3608,60299.0,60294.0,0.082871]
[1726263414129,0.11600363,60296.0,60294.0,0.082871]
[1726263414444,0.3608,60299.0,60295.0,0.08287]
[1726263414445,0.11600363,60298.0,60295.0,0.08287]
[1726263414741,0.11600363,60298.0,60289.0,0.5508]
[1726263414742,0.3608,60299.0,60296.0,0.082869]
[1726263415242,0.47680363,60299.0,60296.0,0.082869]
[1726263415436,0.11600363,60298.0,60296.0,0.082869]
[1726263416333,0.11600363,60298.0,60296.0,0.083869]
[1726263416731,0.012,60298.0,60297.0,0.082868]
[1726263418539,0.013,60298.0,60297.0,0.082868]
[1726263418844,0.015,60298.0,60297.0,0.083868]
[1726263420836,0.13100363,60298.0,60297.0,0.083868]
[1726263421743,0.015,60298.0,60297.0,0.083868]
[1726263422340,0.05558327,60298.0,60297.0,0.083868]
[1726263423541,0.015,60298.0,60297.0,0.083868]
[1726263423741,0.055583,60298.0,60297.0,0.083868]
[1726263424447,0.055583,60298.0,60297.0,0.097868]
[1726263425041,0.055583,60298.0,60297.0,0.015]
[1726263425342,0.62297,60298.0,60297.0,0.02]
[1726263425648,0.11776101,60298.0,60297.0,0.102868]
[1726263425835,0.002,60298.0,60297.0,0.102868]
[1726263426040,0.002,60298.0,60297.0,1.200388]
[1726263426262,0.001,60298.0,60297.0,1.194388]
[1726263426435,0.001,60298.0,60297.0,1.200388]
[1726263426436,0.002,60298.0,60297.0,1.200388]
[1726263427447,0.11575586,60303.0,60302.0,0.082862]
[1726263427644,0.11575586,60303.0,60302.0,0.272862]
[1726263427950,0.11575586,60303.0,60302.0,0.770342]
[1726263428148,0.11575586,60304.0,60303.0,0.08286]
[1726263428452,0.49338788,60308.0,60302.0,0.1918]
[1726263428635,0.11557919,60305.0,60304.0,0.082859]
[1726263428840,0.1248,60313.0,60306.0,0.082855]
[1726263428841,0.13258788,60308.0,60306.0,0.082855]
[1726263429043,0.04057319,60307.0,60306.0,0.082855]
[1726263429944,0.13258788,60307.0,60306.0,0.082855]
[1726263430143,0.17316107,60307.0,60306.0,0.082855]
[1726263430454,0.17316107,60307.0,60306.0,0.085855]
[1726263431347,0.17316107,60307.0,60306.0,0.0930566]
[1726263431648,0.04157319,60307.0,60306.0,0.1070566]
[1726263432247,0.04157319,60307.0,60306.0,0.1040566]
[1726263432443,0.04157319,60307.0,60306.0,0.1070566]
[1726263433344,0.04157319,60307.0,60306.0,1.2044966]
[1726263433550,0.52543677,60318.0,60306.0,1.2044966]
[1726263433551,0.11545983,60318.0,60317.0,0.082841]
[1726263433743,0.11543922,60319.0,60318.0,0.08284]
[1726263433948,0.3608,60328.0,60317.0,0.5508]
[1726263433949,0.11543922,60321.0,60320.0,0.082837]
[1726263434256,0.3608,60328.0,60322.0,0.082834]
[1726263434257,0.13258788,60325.0,60322.0,0.082834]
[1726263434449,0.04056239,60324.0,60322.0,0.443634]
[1726263434656,0.04056239,60323.0,60322.0,0.443634]
[1726263434951,0.11535811,60323.0,60322.0,0.443634]
[1726263435358,0.1237,60330.0,60322.0,0.3608]
[1726263435649,0.1237,60330.0,60317.0,0.36782021]
[1726263435650,0.7216,60325.0,60317.0,0.00702021]
[1726263435853,0.3608,60318.0,60310.0,0.19]
[1726263436052,0.3608,60312.0,60310.0,0.19]
[1726263436246,0.3608,60312.0,60305.0,0.19]
[1726263436747,0.3608,60312.0,60305.0,0.1971101]
[1726263437148,0.013,60321.0,60310.0,0.19]
[1726263437358,0.013,60321.0,60318.0,0.3608]
[1726263437547,0.1237,60330.0,60321.0,0.082835]
[1726263437748,0.1237,60330.0,60322.0,0.19]
[1726263438357,0.3608,60336.0,60329.0,0.19]
[1726263438555,0.3608,60336.0,60326.0,0.3608]
[1726263438556,0.11522319,60342.0,60334.0,0.19]
[1726263438750,0.1226,60344.0,60333.0,0.3608]
[1726263438751,0.3608,60350.0,60343.0,0.082805]
[1726263438946,0.3608,60350.0,60349.0,0.19]
[1726263439255,0.1226,60353.0,60349.0,0.19]
[1726263439763,0.11522319,60370.0,60354.0,0.08279]
[1726263440051,0.3608,60371.0,60364.0,0.19]
[1726263440257,0.3608,60371.0,60360.0,0.3608]
[1726263440444,0.3608,60365.0,60363.0,0.19]
[1726263440648,0.3608,60371.0,60348.0,0.3608]
[1726263440862,0.3608,60370.0,60356.0,0.3608]
[1726263441360,0.3608,60365.0,60355.0,0.3608]
[1726263441559,0.3608,60365.0,60357.0,0.082785]
[1726263441862,0.082756,60379.0,60349.0,0.00899119]
[1726263441863,0.3608,60377.0,60364.0,0.19]
[1726263442049,0.3608,60365.0,60360.0,0.19]
[1726263442857,0.3728,60365.0,60363.0,0.001]
[1726263443259,0.497,60364.0,60363.0,0.001]
[1726263443459,0.497,60364.0,60360.0,0.19]
[1726263443460,0.497,60364.0,60356.0,0.014]
[1726263443757,0.3608,60357.0,60356.0,0.014]
[1726263443961,0.85784,60357.0,60356.0,0.014]
[1726263444261,0.36164,60365.0,60356.0,0.85784]
[1726263444262,0.003,60365.0,60356.0,0.85784]
[1726263444555,0.003,60365.0,60360.0,0.202]
[1726263444556,0.004,60365.0,60360.0,0.202]
[1726263445058,0.003,60365.0,60360.0,0.19]
[1726263445850,0.004,60365.0,60360.0,0.202]
[1726263446054,0.3608,60361.0,60360.0,0.012]
[1726263446663,1.4578,60361.0,60360.0,0.012]
[1726263446959,0.3608,60361.0,60360.0,0.19]
[1726263447461,0.3618,60361.0,60360.0,0.202]
[1726263448165,0.3608,60391.0,60360.0,1.299]
[1726263448363,0.1234,60384.0,60381.0,0.19]
[1726263448866,0.49684,60383.0,60376.0,0.19]
[1726263449165,0.12436001,60384.0,60382.0,0.19]
[1726263449351,0.3608,60386.0,60382.0,0.19]
[1726263449552,0.13254,60391.0,60383.0,0.3608]
[1726263449756,0.3608,60398.0,60390.0,0.19]
[1726263449959,0.3608,60398.0,60388.0,0.0018]
[1726263450258,0.001,60390.0,60389.0,0.26]
[1726263450460,0.00522319,60391.0,60390.0,0.082741]
[1726263450667,0.49348788,60398.0,60388.0,0.3608]
[1726263450858,0.49348788,60398.0,60383.0,0.4825]
[1726263450859,0.3608,60392.0,60383.0,0.2618]
[1726263451060,0.49726,60394.0,60366.0,0.0039]
[1726263451061,0.082755,60380.0,60366.0,0.0039]
[1726263451262,0.3608,60384.0,60367.0,0.3608]
[1726263451263,0.13258788,60378.0,60367.0,0.3608]
[1726263451559,0.3608,60379.0,60376.0,0.26]
[1726263451763,0.3608,60374.0,60370.0,0.26]
[1726263451966,0.53745391,60373.0,60364.0,0.26]
[1726263452264,0.53745391,60373.0,60349.0,0.0045]
[1726263452265,0.3608,60368.0,60347.0,0.0039]
[1726263452470,0.3608,60368.0,60339.0,0.3608]
[1726263452471,0.082803,60345.0,60339.0,0.26]
[1726263452657,0.3608,60340.0,60339.0,0.26]
[1726263452855,0.3608,60340.0,60333.0,0.26]
[1726263454362,0.002,60340.0,60333.0,0.285]
[1726263455467,0.002,60340.0,60339.0,0.26]
[1726263455866,0.001,60340.0,60339.0,0.26]
[1726263456072,0.002,60340.0,60339.0,0.26]
[1726263456575,0.002,60340.0,60339.0,0.6268]
[1726263457666,0.36164,60348.0,60339.0,1.737]
[1726263457871,0.3608,60348.0,60347.0,0.26]
[1726263458668,0.3608,60361.0,60347.0,1.71792]
[1726263458870,0.3608,60361.0,60360.0,0.26]
[1726263459369,0.49614,60368.0,60360.0,0.26]
[1726263459573,0.4953,60368.0,60360.0,0.26]
[1726263459767,0.4953,60368.0,60360.0,0.6208]
[1726263459976,0.014,60361.0,60360.0,0.6218]
[1726263460165,0.014,60361.0,60360.0,0.261]
[1726263460572,0.1485,60368.0,60360.0,0.261]
[1726263460770,0.018,60368.0,60367.0,0.26]
[1726263461161,0.004,60368.0,60367.0,0.26]
[1726263461572,1.09696,60368.0,60360.0,0.02]
[1726263461779,0.3608,60361.0,60360.0,0.02]
[1726263462271,0.3608,60361.0,60340.0,0.3608]
[1726263462272,1.4578,60361.0,60340.0,0.26]
[1726263462472,0.3608,60345.0,60340.0,0.26]
[1726263462971,0.3608,60345.0,60333.0,0.3608]
[1726263462972,0.127,60344.0,60334.0,0.26]
[1726263463679,0.127,60344.0,60340.0,0.014]
[1726263463881,0.127,60344.0,60340.0,0.027]
[1726263464179,0.127,60344.0,60340.0,0.013]
[1726263464567,0.127,60344.0,60334.0,0.286]
[1726263464568,0.210804,60344.0,60334.0,0.286]
[1726263464774,0.3608,60338.0,60334.0,0.026]
[1726263465278,0.3608,60337.0,60334.0,0.026]
[1726263465478,0.128,60344.0,60334.0,0.026]
[1726263465671,0.3608,60335.0,60334.0,0.025]
[1726263466079,0.85804,60335.0,60334.0,0.025]
[1726263466279,1.49860182,60335.0,60321.0,0.26]
[1726263466480,0.082825,60329.0,60321.0,0.26]
[1726263466674,0.129,60328.0,60321.0,0.26]
[1726263467479,0.129,60328.0,60321.0,0.267]
[1726263467668,0.3608,60324.0,60321.0,0.267]
[1726263467872,0.129,60328.0,60321.0,0.267]
[1726263468377,0.13,60328.0,60321.0,0.267]